fUST/lending_fUST_20240501
["ID","MTS","AMOUNT","RATE_DAILY","PERIOD"]
[324984292,1714495839274,-500.0,0.00019178,2]
[324984293,1714495839283,-500.0,0.00019178,2]
[324984294,1714495839292,-500.0,0.00019178,2]
[324984295,1714495839301,-500.0,0.00019178,2]
[324984296,1714495839310,-500.46173256,0.00019178,2]
[324984297,1714495839319,-165.31168112,0.00019178,2]
[324984298,1714495839328,-500.0,0.00019178,2]
[324984299,1714495839336,-500.0,0.00019178,2]
[324984300,1714495839346,-500.0,0.00019178,2]
[324984301,1714495839355,-500.0,0.00019178,2]
[324984302,1714495839364,-500.0,0.00019178,2]
[324984303,1714495839373,-500.0,0.00019178,2]
[324984304,1714495839382,-507.71043504,0.00019178,2]
[324984305,1714495839391,-232.4717852,0.00019178,2]
[324984306,1714495839404,-500.0,0.00019178,2]
[324984307,1714495839413,-500.0,0.00019178,2]
[324984308,1714495839422,-500.0,0.00019178,2]
[324984309,1714495839433,-500.0,0.00019178,2]
[324984310,1714495839442,-500.0,0.00019178,2]
[324984311,1714495839451,-500.0,0.00019178,2]
[324984312,1714495839460,-500.0,0.00019178,2]
[324984313,1714495839470,-500.0,0.00019178,2]
[324984314,1714495839480,-345.0733016,0.00019178,2]
[324984315,1714495839489,-500.0,0.00019178,2]
[324984316,1714495839498,-500.0,0.00019178,2]
[324984317,1714495839507,-500.0,0.00019178,2]
[324984318,1714495839516,-500.0,0.00019178,2]
[324984319,1714495839530,-500.0,0.00019178,2]
[324984320,1714495839539,-500.0,0.00019178,2]
[324984321,1714495839548,-183.68084576,0.00019178,2]
[324984322,1714495839558,-500.0,0.00019178,2]
[324984323,1714495839567,-500.0,0.00019178,2]
[324984324,1714495839577,-500.0,0.00019178,2]
[324984325,1714495839587,-500.0,0.00019178,2]
[324984326,1714495839596,-500.0,0.00019178,2]
[324984327,1714495839605,-500.0,0.00019178,2]
[324984328,1714495839615,-500.0,0.00019178,2]
[324984329,1714495839624,-500.0,0.00019178,2]
[324984330,1714495839633,-500.0,0.00019178,2]
[324984331,1714495839643,-500.0,0.00019178,2]
[324984332,1714495839652,-500.0,0.00019178,2]
[324984333,1714495839661,-500.0,0.00019178,2]
[324984334,1714495839670,-500.0,0.00019178,2]
[324984335,1714495839680,-500.0,0.00019178,2]
[324984336,1714495839689,-500.0,0.00019178,2]
[324984337,1714495839699,-500.0,0.00019178,2]
[324984338,1714495839708,-500.0,0.00019178,2]
[324984339,1714495839717,-500.0,0.00019178,2]
[324984340,1714495839727,-500.0,0.00019178,2]
[324984341,1714495839737,-500.0,0.00019178,2]
[324984342,1714495839746,-500.0,0.00019178,2]
[324984343,1714495839756,-500.0,0.00019178,2]
[324984344,1714495839766,-500.0,0.00019178,2]
[324984345,1714495839778,-500.0,0.00019178,2]
[324984346,1714495839787,-500.0,0.00019178,2]
[324984347,1714495839796,-500.0,0.00019178,2]
[324984348,1714495839806,-500.0,0.00019178,2]
[324984349,1714495839815,-500.0,0.00019178,2]
[324984350,1714495839824,-500.0,0.00019178,2]
[324984351,1714495839833,-500.0,0.00019178,2]
[324984352,1714495839842,-500.0,0.00019178,2]
[324984353,1714495839852,-623.80175139,0.00019178,2]
[324984354,1714495839861,-500.0,0.00019178,2]
[324984355,1714495839870,-500.0,0.00019178,2]
[324984356,1714495839880,-500.0,0.00019178,2]
[324984357,1714495839889,-500.0,0.00019178,2]
[324984358,1714495839898,-500.0,0.00019178,2]
[324984359,1714495839907,-500.0,0.00019178,2]
[324984360,1714495839917,-500.0,0.00019178,2]
[324984361,1714495839926,-500.0,0.00019178,2]
[324984362,1714495839935,-500.0,0.00019178,2]
[324984363,1714495839944,-550.0,0.00019178,2]
[324984364,1714495839954,-500.0,0.00019178,2]
[324984365,1714495839963,-160.483646,0.00019178,2]
[324984366,1714495839972,-160.585066,0.00019178,2]
[324984367,1714495839981,-160.57566,0.00019178,2]
[324984368,1714495839990,-160.0,0.00019571,2]
[324984369,1714495839999,-329.99389325,0.0002,2]
[324984370,1714495840008,-10481.54893926,0.0002,2]
[324984371,1714495840017,-67426.19859378,0.0002,2]
[324984372,1714495840032,-241.71320654,0.0002,2]
[324984373,1714495840042,-49283.86005778,0.0002,2]
[324984374,1714495840051,-200.0,0.0002,2]
[324984375,1714495840059,-320.0,0.00020119,2]
[324984376,1714495840069,-581.54,0.0002036,3]
[324984377,1714495840078,-2684.07607813,0.00020547,2]
[324984378,1714495840087,-480.0,0.00020667,2]
[324984379,1714495840096,-155.771747,0.00020909,2]
[324984380,1714495840106,-483.59455737,0.0002091,4]
[324984381,1714495840115,-157.61317396,0.00020913,2]
[324984382,1714495840124,-212.26666393,0.00020913,2]
[324984383,1714495840134,-5000.0,0.00021,2]
[324984384,1714495840143,-1083.25121685,0.00021131,2]
[324984385,1714495840152,-788.29704128,0.00021215,2]
[324984386,1714495840161,-166.666666,0.00021918,2]
[324984387,1714495840170,-10000.0,0.00021918,2]
[324984388,1714495840179,-868.25,0.00021918,2]
[324984389,1714495840188,-723.54,0.00021918,2]
[324984390,1714495840198,-602.95,0.00021918,2]
[324984391,1714495840207,-502.46,0.00021918,2]
[324984392,1714495840217,-418.72,0.00021918,2]
[324984393,1714495840226,-348.93,0.00021918,2]
[324984394,1714495840235,-872.36,0.00021918,2]
[324984396,1714495840244,-786.09169393,0.00021964,2]
[324984398,1714495840253,-159.21978257,0.00022,2]
[324984400,1714495840262,-166.666666,0.00022431,2]
[324984402,1714495840273,-164.759773,0.00022466,2]
[324984404,1714495840282,-279.556185,0.00022466,2]
[324984406,1714495840291,-166.666666,0.00022944,2]
[324984408,1714495840300,-714.17223552,0.00023,2]
[324984410,1714495840309,-668.79200376,0.00023408,2]
[324984412,1714495840319,-166.666666,0.00023456,2]
[324984414,1714495840328,-3386.05523153,0.000239,2]
[324984416,1714495840337,-166.666666,0.00023969,2]
[324984418,1714495840347,-989.91268434,0.00024,2]
[324984420,1714495840356,-693.45686249,0.00024,2]
[324984422,1714495840365,-166.666666,0.00024482,2]
[324984424,1714495840374,-622.43960019,0.00024578,2]
[324984426,1714495840386,-1083.25121685,0.00024648,2]
[324984428,1714495840397,-500.0,0.00024657,2]
[324984430,1714495840406,-500.0,0.00024657,2]
[324984432,1714495840415,-380.0,0.00024658,2]
[324984434,1714495840425,-200.0,0.00024658,2]
[324984436,1714495840434,-500.0,0.00024712,2]
[324984438,1714495840443,-500.0,0.00024767,2]
[324984440,1714495840452,-500.0,0.00024821,2]
[324984442,1714495840461,-500.0,0.00024876,2]
[324984443,1714495840471,-500.0,0.00024931,2]
[324984445,1714495840480,-500.0,0.00024986,2]
[324984447,1714495840489,-159.87111398,0.00025,2]
[324984449,1714495840498,-154.78330338,0.00025,2]
[324984451,1714495840508,-154.78330338,0.00025,2]
[324984453,1714495840517,-154.78330338,0.00025,2]
[324984455,1714495840529,-154.78330338,0.00025,2]
[324984458,1714495840538,-500.0,0.00025041,2]
[324984460,1714495840547,-500.0,0.00025095,2]
[324984462,1714495840557,-500.0,0.0002515,2]
[324984464,1714495840567,-454.04037112,0.00025205,2]
[324984466,1714495840581,-45.95962888,0.00025205,2]
[324984468,1714495840590,-500.0,0.0002526,2]
[324984470,1714495840599,-500.0,0.00025315,2]
[324984472,1714495840608,-500.0,0.00025369,2]
[324984474,1714495840618,-500.0,0.00025424,2]
[324984476,1714495840627,-786.09169393,0.00025456,2]
[324984478,1714495840636,-500.0,0.00025479,2]
[324984480,1714495840645,-500.0,0.00025534,2]
[324984482,1714495840655,-206.56888876,0.00025589,2]
[324984484,1714495840664,-209.82008119,0.00025786,3]
[324984486,1714495840673,-620.12198001,0.00025807,2]
[324984488,1714495840685,-3000.0,0.000266,2]
[324984490,1714495840694,-2000.0,0.000266,2]
[324984492,1714495840703,-2000.0,0.000266,2]
[324984494,1714495840712,-2000.0,0.000266,2]
[324984496,1714495840721,-2000.0,0.000266,2]
[324984498,1714495840730,-8529.21181525,0.00027,2]
[324984500,1714495840741,-620.006099,0.00027098,2]
[324984502,1714495840750,-1000.0,0.00027397,30]
[324984504,1714495840760,-1000.0,0.00027397,30]
[324984506,1714495840769,-1000.0,0.00027397,30]
[324984508,1714495840781,-1000.0,0.00027397,30]
[324984510,1714495840790,-1000.0,0.00027397,30]
[324984512,1714495840799,-1000.0,0.00027397,30]
[324984514,1714495840809,-1000.0,0.00027397,30]
[324984516,1714495840818,-154.81422293,0.000274,2]
[324984518,1714495840827,-1801.5,0.00027539,3]
[324984520,1714495840836,-436.25,0.0002754,2]
[324984522,1714495840846,-211.042,0.0002754,2]
[324984524,1714495840855,-224.909,0.0002754,2]
[324984526,1714495840864,-220.93587945,0.00028,2]
[324984528,1714495840873,-1083.25121685,0.00028164,2]
[324984530,1714495840882,-620.00030495,0.00028453,2]
[324984532,1714495840891,-199.419334,0.00028493,2]
[324984534,1714495840900,-199.419334,0.00028493,120]
[324984536,1714495840910,-279.556185,0.00028493,2]
[324984538,1714495840919,-1801.5,0.00028618,5]
[324984540,1714495840928,-150.53295523,0.00028778,2]
[324984542,1714495840937,-3386.05523153,0.000289,2]
[324984544,1714495840946,-786.09169393,0.00028949,4]
[324984546,1714495840955,-1801.5,0.00029696,5]
[324984548,1714495840964,-160.57566,0.00029715,2]
[324984550,1714495840973,-150.0,0.00029778,2]
[324984552,1714495840982,-620.00001525,0.00029875,2]
[324984554,1714495840991,-2502.33107,0.0003,2]
[324984556,1714495841001,-3722.55253328,0.0003,4]
[324984558,1714495841010,-154.81422293,0.0003,4]
[324984560,1714495841023,-212.54437456,0.0003,4]
[324984562,1714495841032,-188.46262606,0.0003,4]
[324984564,1714495841041,-187.0,0.0003,2]
[324984566,1714495841050,-417.0,0.0003054,2]
[324984568,1714495841060,-1801.5,0.00030774,7]
[324984570,1714495841069,-150.0,0.00030778,2]
[324984572,1714495841078,-1121.66833623,0.00031,4]
[324984574,1714495841087,-466.79432,0.00031161,2]
[324984576,1714495841096,-466.79432,0.00031161,2]
[324984578,1714495841105,-466.79433,0.00031161,2]
[324984580,1714495841114,-466.79432,0.00031161,2]
[324984582,1714495841123,-466.79433,0.00031161,2]
[324984584,1714495841133,-150.0,0.0003132,16]
[324984586,1714495841142,-620.00000076,0.00031369,2]
[324984588,1714495841151,-150.77383924,0.0003138,2]
[324984590,1714495841161,-1000.0,0.000316,10]
[324984592,1714495841170,-152.95,0.00031602,120]
[324984594,1714495841179,-15775.79630362,0.0003168,7]
[324984596,1714495841188,-1083.25121685,0.0003168,2]
[324984598,1714495841197,-44444.0,0.0003168,3]
[324984600,1714495841206,-151.0,0.0003168,2]
[324984602,1714495841215,-151.0,0.0003168,2]
[324984604,1714495841224,-448.529765,0.0003168,2]
[324984606,1714495841233,-151.0,0.0003168,2]
[324984608,1714495841243,-448.529765,0.0003168,2]
[324984610,1714495841252,-3238.184608,0.0003168,2]
[324984612,1714495841261,-3238.184608,0.0003168,2]
[324984614,1714495841271,-585.507136,0.0003168,2]
[324984616,1714495841281,-585.507136,0.0003168,2]
[324984618,1714495841290,-151.0,0.0003168,2]
[324984620,1714495841299,-206.480256,0.0003168,2]
[324984622,1714495841308,-206.480256,0.0003168,2]
[324984624,1714495841317,-151.0,0.0003168,2]
[324984626,1714495841326,-151.0,0.0003168,2]
[324984628,1714495841335,-151.0,0.0003168,2]
[324984630,1714495841344,-150.0,0.00031778,2]
[324984632,1714495841353,-1000.0,0.00031779,30]
[324984634,1714495841362,-1000.0,0.00031779,30]
[324984636,1714495841371,-1000.0,0.00031779,30]
[324984638,1714495841381,-1000.0,0.00031779,30]
[324984640,1714495841390,-1000.0,0.00031779,30]
[324984642,1714495841402,-1000.0,0.00031779,30]
[324984644,1714495841411,-1452.62675219,0.0003178,4]
[324984646,1714495841419,-500.0,0.0003178,2]
[324984647,1714495841428,-14239.91354927,0.0003178,7]
[324984649,1714495841438,-2101.68210532,0.0003178,2]
[324984651,1714495841447,-2000.0,0.0003178,2]
[324984653,1714495841457,-191.54103763,0.0003178,4]
[324984655,1714495841466,-500.0,0.0003178,2]
[324984657,1714495841478,-500.0,0.0003178,2]
[324984660,1714495841487,-500.0,0.0003178,2]
[324984662,1714495841496,-500.0,0.0003178,2]
[324984663,1714495841505,-500.0,0.0003178,2]
[324984665,1714495841515,-500.0,0.0003178,2]
[324984667,1714495841529,-500.0,0.0003178,2]
[324984669,1714495841539,-211.37505663,0.0003178,2]
[324984671,1714495841548,-184.7246913,0.0003178,2]
[324984673,1714495841558,-500.0,0.0003178,2]
[324984675,1714495841568,-500.0,0.0003178,2]
[324984677,1714495841578,-988.34,0.0003178,2]
[324984679,1714495841588,-500.0,0.0003178,2]
[324984681,1714495841598,-500.0,0.0003178,2]
[324984683,1714495841608,-500.0,0.0003178,2]
[324984685,1714495841618,-500.0,0.0003178,2]
[324984687,1714495841628,-500.0,0.0003178,2]
[324984689,1714495841637,-500.0,0.0003178,2]
[324984690,1714495841647,-500.0,0.0003178,2]
[324984691,1714495841656,-500.0,0.0003178,2]
[324984692,1714495841665,-500.0,0.0003178,2]
[324984693,1714495841674,-500.0,0.0003178,2]
[324984694,1714495841684,-542.35546458,0.0003178,2]
[324984695,1714495841693,-500.0,0.0003178,2]
[324984696,1714495841702,-387.72935476,0.0003178,2]
[324984697,1714495841712,-500.0,0.0003178,2]
[324984698,1714495841721,-508.33,0.0003178,2]
[324984699,1714495841730,-500.0,0.0003178,2]
[324984700,1714495841740,-500.0,0.0003178,2]
[324984701,1714495841749,-500.0,0.0003178,2]
[324984702,1714495841758,-500.0,0.0003178,2]
[324984703,1714495841767,-500.0,0.0003178,2]
[324984704,1714495841783,-500.0,0.0003178,2]
[324984705,1714495841792,-500.0,0.0003178,2]
[324984706,1714495841801,-500.0,0.0003178,2]
[324984707,1714495841810,-500.0,0.0003178,2]
[324984708,1714495841819,-500.0,0.0003178,2]
[324984709,1714495841828,-500.0,0.0003178,2]
[324984722,1714495841837,-510.98,0.0003178,2]
[324984724,1714495841985,-500.0,0.0003178,2]
[324984726,1714495841995,-500.0,0.0003178,2]
[324984727,1714495842004,-500.0,0.0003178,2]
[324984729,1714495842014,-500.0,0.0003178,2]
[324984732,1714495842027,-651.61,0.0003178,2]
[324984734,1714495842036,-651.61,0.0003178,2]
[324984736,1714495842044,-651.61,0.0003178,2]
[324984737,1714495842053,-651.61,0.0003178,2]
[324984739,1714495842062,-651.61,0.0003178,2]
[324984742,1714495842071,-651.61,0.0003178,2]
[324984743,1714495842080,-651.61,0.0003178,2]
[324984746,1714495842089,-651.61,0.0003178,2]
[324984747,1714495842098,-651.61,0.0003178,2]
[324984749,1714495842107,-651.61,0.0003178,2]
[324984751,1714495842116,-651.61,0.0003178,2]
[324984753,1714495842126,-651.61,0.0003178,2]
[324984755,1714495842134,-651.61,0.0003178,2]
[324984757,1714495842144,-553.82,0.0003178,2]
[324984759,1714495842153,-541.08982709,0.0003178,2]
[324984761,1714495842162,-151.0,0.0003178,2]
[324984763,1714495842170,-500.0,0.0003178,2]
[324984765,1714495842179,-247.79907711,0.0003178,2]
[324984767,1714495842188,-500.0,0.0003178,2]
[324984769,1714495842197,-500.0,0.0003178,2]
[324984771,1714495842207,-500.0,0.0003178,2]
[324984773,1714495842216,-500.0,0.0003178,2]
[324984775,1714495842225,-500.0,0.0003178,2]
[324984777,1714495842234,-500.76170349,0.0003178,2]
[324984779,1714495842244,-500.0,0.0003178,2]
[324984781,1714495842253,-500.0,0.0003178,2]
[324984783,1714495842262,-500.0,0.0003178,2]
[324984784,1714495842272,-262.62758857,0.0003178,2]
[324984786,1714495842281,-500.0,0.0003178,2]
[324984788,1714495842289,-428.95152644,0.0003178,2]
[324984790,1714495842298,-500.0,0.0003178,2]
[324984792,1714495842308,-500.0,0.0003178,2]
[324984795,1714495842317,-499.14764595,0.0003178,2]
[324984797,1714495842326,-500.0,0.0003178,2]
[324984798,1714495842335,-500.0,0.0003178,2]
[324984800,1714495842345,-820.04,0.0003178,2]
[324984803,1714495842354,-571.87,0.0003178,2]
[324984805,1714495842364,-591.88289125,0.0003178,2]
[324984807,1714495842373,-500.90257208,0.0003178,2]
[324984809,1714495842383,-840.9,0.0003178,2]
[324984811,1714495842396,-500.0,0.0003178,2]
[324984813,1714495842405,-500.0,0.0003178,2]
[324984814,1714495842415,-500.0,0.0003178,2]
[324984816,1714495842424,-159.666456,0.0003178,2]
[324984819,1714495842435,-712.99,0.0003178,2]
[324984820,1714495842443,-169.71608019,0.0003178,2]
[324984822,1714495842452,-159.666456,0.0003178,2]
[324984824,1714495842462,-500.97290716,0.0003178,2]
[324984827,1714495842472,-500.0,0.0003178,2]
[324984828,1714495842482,-561.78,0.0003178,2]
[324984831,1714495842491,-500.0,0.0003178,2]
[324984833,1714495842500,-1553.91,0.0003178,2]
[324984835,1714495842510,-505.16959624,0.0003178,2]
[324984837,1714495842521,-500.0,0.0003178,2]
[324984838,1714495842531,-500.0,0.0003178,2]
[324984840,1714495842540,-151.0,0.0003178,2]
[324984842,1714495842550,-500.0,0.0003178,2]
[324984844,1714495842559,-500.0,0.0003178,2]
[324984847,1714495842568,-500.0,0.0003178,2]
[324984849,1714495842578,-500.0,0.0003178,2]
[324984851,1714495842587,-500.0,0.0003178,2]
[324984853,1714495842596,-500.0,0.0003178,2]
[324984855,1714495842605,-500.0,0.0003178,2]
[324984857,1714495842614,-500.0,0.0003178,2]
[324984859,1714495842623,-500.0,0.0003178,2]
[324984861,1714495842632,-500.0,0.0003178,2]
[324984863,1714495842641,-984.47,0.0003178,2]
[324984865,1714495842650,-500.0,0.0003178,2]
[324984867,1714495842659,-500.0,0.0003178,2]
[324984868,1714495842669,-500.0,0.0003178,2]
[324984870,1714495842678,-558.86,0.0003178,2]
[324984873,1714495842687,-500.0,0.0003178,2]
[324984875,1714495842697,-500.0,0.0003178,2]
[324984876,1714495842706,-500.0,0.0003178,2]
[324984878,1714495842715,-151.0,0.0003178,2]
[324984880,1714495842725,-500.0,0.0003178,2]
[324984883,1714495842734,-500.0,0.0003178,2]
[324984885,1714495842743,-333.43535629,0.0003178,2]
[324984887,1714495842752,-658.2,0.0003178,2]
[324984888,1714495842762,-462.86791924,0.0003178,2]
[324984891,1714495842775,-500.0,0.0003178,2]
[324984893,1714495842783,-513.78288345,0.0003178,2]
[324984895,1714495842792,-500.0,0.0003178,2]
[324984896,1714495842800,-500.0,0.0003178,2]
[324984898,1714495842809,-500.0,0.0003178,2]
[324984900,1714495842818,-500.0,0.0003178,2]
[324984902,1714495842827,-500.0,0.0003178,2]
[324984904,1714495842836,-945.94,0.0003178,2]
[324984906,1714495842846,-500.0,0.0003178,2]
[324984908,1714495842855,-580.31,0.0003178,2]
[324984910,1714495842865,-500.0,0.0003178,2]
[324984913,1714495842874,-500.0,0.0003178,2]
[324984916,1714495842883,-604.98,0.0003178,2]
[324984920,1714495842892,-500.0,0.0003178,2]
[324984922,1714495842902,-500.0,0.0003178,2]
[324984926,1714495842911,-500.0,0.0003178,2]
[324984929,1714495842920,-604.9,0.0003178,2]
[324984932,1714495842929,-217.46866619,0.0003178,2]
[324984934,1714495842938,-500.0,0.0003178,2]
[324984937,1714495842947,-500.0,0.0003178,2]
[324984941,1714495842957,-561.27769558,0.0003178,2]
[324984944,1714495842966,-664.79,0.0003178,2]
[324984948,1714495842975,-500.0,0.0003178,2]
[324984953,1714495842984,-500.0,0.0003178,2]
[324984956,1714495842994,-500.0,0.0003178,2]
[324984960,1714495843003,-151.0,0.0003178,2]
[324984965,1714495843012,-151.0,0.0003178,2]
[324984971,1714495843023,-500.0,0.0003178,2]
[324984975,1714495843032,-500.0,0.0003178,2]
[324984980,1714495843041,-500.0,0.0003178,2]
[324984982,1714495843050,-151.0,0.0003178,2]
[324984984,1714495843058,-151.0,0.0003178,2]
[324984987,1714495843067,-509.59,0.0003178,2]
[324984990,1714495843076,-160.728456,0.0003178,2]
[324984993,1714495843085,-592.02,0.0003178,2]
[324984996,1714495843094,-632.41,0.0003178,2]
[324984999,1714495843103,-508.35994919,0.0003178,2]
[324985002,1714495843112,-500.0,0.0003178,2]
[324985004,1714495843122,-500.0,0.0003178,2]
[324985005,1714495843131,-500.0,0.0003178,2]
[324985006,1714495843140,-500.0,0.0003178,2]
[324985008,1714495843149,-500.0,0.0003178,2]
[324985010,1714495843158,-500.0,0.0003178,2]
[324985012,1714495843167,-500.0,0.0003178,2]
[324985014,1714495843176,-500.0,0.0003178,2]
[324985016,1714495843185,-605.7,0.0003178,2]
[324985018,1714495843194,-500.0,0.0003178,2]
[324985020,1714495843204,-500.0,0.0003178,2]
[324985022,1714495843213,-500.0,0.0003178,2]
[324985024,1714495843222,-500.0,0.0003178,2]
[324985027,1714495843231,-151.0,0.0003178,2]
[324985030,1714495843240,-500.0,0.0003178,2]
[324985033,1714495843249,-151.0,0.0003178,2]
[324985036,1714495843259,-500.0,0.0003178,2]
[324985039,1714495843267,-500.0,0.0003178,2]
[324985042,1714495843278,-483.8101321,0.0003178,2]
[324985045,1714495843287,-267.765277,0.0003178,2]
[324985048,1714495843296,-500.0,0.0003178,2]
[324985051,1714495843305,-151.0,0.0003178,2]
[324985054,1714495843314,-151.0,0.0003178,2]
[324985057,1714495843323,-500.0,0.0003178,2]
[324985060,1714495843332,-500.0,0.0003178,2]
[324985063,1714495843342,-500.0,0.0003178,2]
[324985066,1714495843351,-300.0,0.0003178,2]
[324985069,1714495843360,-500.0,0.0003178,2]
[324985072,1714495843370,-500.0,0.0003178,2]
[324985075,1714495843379,-500.0,0.0003178,2]
[324985078,1714495843389,-500.0,0.0003178,2]
[324985081,1714495843407,-922.2,0.0003178,2]
[324985084,1714495843417,-500.0,0.0003178,2]
[324985086,1714495843426,-524.83914311,0.0003178,2]
[324985089,1714495843435,-583.9,0.0003178,2]
[324985092,1714495843444,-500.0,0.0003178,2]
[324985095,1714495843455,-845.52,0.0003178,2]
[324985098,1714495843464,-500.0,0.0003178,2]
[324985100,1714495843475,-500.0,0.0003178,2]
[324985102,1714495843483,-500.0,0.0003178,2]
[324985104,1714495843492,-500.0,0.0003178,2]
[324985106,1714495843501,-151.0,0.0003178,2]
[324985108,1714495843510,-637.22,0.0003178,2]
[324985110,1714495843520,-500.4961244,0.0003178,2]
[324985112,1714495843530,-500.0,0.0003178,2]
[324985114,1714495843539,-599.02365329,0.0003178,2]
[324985116,1714495843548,-197.27293305,0.0003178,2]
[324985118,1714495843557,-500.0,0.0003178,2]
[324985120,1714495843566,-500.0,0.0003178,2]
[324985122,1714495843575,-500.0,0.0003178,2]
[324985124,1714495843584,-500.0,0.0003178,2]
[324985126,1714495843594,-1092.6,0.0003178,2]
[324985128,1714495843603,-500.0,0.0003178,2]
[324985130,1714495843612,-500.0,0.0003178,2]
[324985132,1714495843622,-500.0,0.0003178,2]
[324985134,1714495843631,-500.0,0.0003178,2]
[324985136,1714495843640,-500.0,0.0003178,2]
[324985138,1714495843649,-500.0,0.0003178,2]
[324985140,1714495843658,-500.0,0.0003178,2]
[324985142,1714495843667,-500.0,0.0003178,2]
[324985144,1714495843676,-500.0,0.0003178,2]
[324985146,1714495843685,-610.12,0.0003178,2]
[324985148,1714495843695,-500.0,0.0003178,2]
[324985150,1714495843703,-500.0,0.0003178,2]
[324985152,1714495843713,-185.005155,0.0003178,2]
[324985154,1714495843722,-500.0,0.0003178,2]
[324985156,1714495843731,-185.005155,0.0003178,2]
[324985158,1714495843741,-185.005155,0.0003178,2]
[324985160,1714495843750,-500.0,0.0003178,2]
[324985162,1714495843759,-500.0,0.0003178,2]
[324985164,1714495843769,-185.005155,0.0003178,2]
[324985166,1714495843781,-185.005155,0.0003178,2]
[324985168,1714495843790,-533.31,0.0003178,2]
[324985170,1714495843799,-501.63257989,0.0003178,2]
[324985172,1714495843808,-185.005155,0.0003178,2]
[324985174,1714495843817,-500.0,0.0003178,2]
[324985176,1714495843827,-500.0,0.0003178,2]
[324985178,1714495843836,-500.88982496,0.0003178,2]
[324985179,1714495843845,-500.0,0.0003178,2]
[324985180,1714495843854,-500.0,0.0003178,2]
[324985181,1714495843864,-500.0,0.0003178,30]
[324985182,1714495843873,-500.0,0.0003178,2]
[324985184,1714495843882,-221.32490426,0.0003178,2]
[324985186,1714495843891,-500.0,0.0003178,2]
[324985188,1714495843900,-4605.010962,0.0003178,2]
[324985190,1714495843910,-4605.010962,0.0003178,2]
[324985192,1714495843919,-151.0,0.0003178,2]
[324985194,1714495843929,-151.0,0.0003178,2]
[324985196,1714495843939,-500.0,0.0003178,2]
[324985198,1714495843948,-4605.010962,0.0003178,2]
[324985200,1714495843957,-151.0,0.0003178,2]
[324985202,1714495843967,-500.0,0.0003178,2]
[324985204,1714495843976,-500.0,0.0003178,2]
[324985206,1714495843985,-500.0,0.0003178,2]
[324985208,1714495843994,-4605.010962,0.0003178,2]
[324985210,1714495844003,-4605.010962,0.0003178,2]
[324985212,1714495844012,-4605.010962,0.0003178,2]
[324985214,1714495844023,-500.0,0.0003178,2]
[324985217,1714495844032,-500.0,0.0003178,2]
[324985219,1714495844041,-500.0,0.0003178,2]
[324985221,1714495844050,-488.85712143,0.0003178,2]
[324985223,1714495844058,-605.25,0.0003178,2]
[324985224,1714495844067,-1786.201299,0.0003178,2]
[324985226,1714495844076,-1786.201299,0.0003178,2]
[324985229,1714495844086,-1786.201299,0.0003178,2]
[324985230,1714495844095,-802.95,0.0003178,2]
[324985232,1714495844104,-1786.201299,0.0003178,2]